Cogmind - Beta 15 @@@ ROGUE MODE // 2025.05.06 @ 01:10:17 Player: gallo Result: Self-destructed Performance ------------- Evolutions (1) 500 Regions Visited (2) 400 Robots Destroyed (20) 100 Value Destroyed (528) 528 Prototype IDs (0) 0 Alien Tech Used (0) 0 Bonus (0) 0 TOTAL SCORE: 1528 Bonus ------- None Cogmind --------- Core Integrity 222/400 Matter 156/300 Energy 100/100 System Corruption 2% Temperature Cool (0) Movement Core (100) Ox1 Location -9/Materials Parts ------- > --- POWER (1) -------- (None) > --- PROPULSION (3) --- (None) > --- UTILITY (3) ------ Small Storage Unit Visual Processing Unit > --- WEAPON (2) ------- (None) > --- INVENTORY (8) ---- Light Ion Engine Sensor Array Rocket Launcher Peak State ------------ > --- POWER ------------ Ion Engine > --- PROPULSION ------- Wheel Compact Wheel Compact Wheel > --- UTILITY ---------- Small Storage Unit Structural Scanner Visual Processing Unit > --- WEAPON ----------- Assault Rifle Rocket Launcher > --- INVENTORY -------- Ion Engine Light Ion Engine Compact Wheel Sensor Array Assault Rifle Rocket Launcher [Rating: 11] Favorites ----------- Power Ion Engine Engine Ion Engine Propulsion Compact Wheel Wheel Compact Wheel Utility Small Storage Unit Device Structural Scanner Storage Small Storage Unit Processor Visual Processing Unit Protection Light Armor Plating Weapon Assault Rifle Energy Gun Small Laser Ballistic Gun Assault Rifle Launcher Grenade Launcher Build | -11 -10 -9 ------- Run | Yrd Mat Mat Slots Evolved 2 | . . 2 Power . | . . . Propulsion 1 | . . 1 Utility 1 | . . 1 Weapon . | . . . Parts Attached 19 | 6 9 4 Power 2 | 1 1 . Engine 2 | 1 1 . Core . | . . . Reactor . | . . . Propulsion 5 | 2 1 2 Treads . | . . . Leg . | . . . Wheel 5 | 2 1 2 Hover . | . . . Flight . | . . . Utility 5 | 1 3 1 Device 2 | . 2 . Storage 1 | 1 . . Processor 1 | . . 1 Hackware . | . . . Protection 1 | . 1 . Artifact . | . . . Weapon 7 | 2 4 1 Energy Gun 2 | 2 . . Energy Cannon . | . . . Ballistic Gun 3 | . 3 . Ballistic Cannon . | . . . Launcher 2 | . 1 1 Special Weapon . | . . . Impact Weapon . | . . . Slashing Weapon . | . . . Piercing Weapon . | . . . Special Melee Weapon . | . . . Unidentified Prototypes . | . . . Parts Lost 9 | . 1 8 Power 1 | . . 1 Propulsion 4 | . . 4 Utility 2 | . 1 1 Weapon 2 | . . 2 Highest Loss Streak 5 | . 1 5 To Critical Strikes . | . . . Average Backups 4 | 1 4 5 Power 1 | . 1 1 Propulsion . | . . . Utility . | . . . Weapon 1 | . 1 1 Tool/Special . | . . . Unused Backups 2 | . . 2 Power 1 | . . 1 Propulsion . | . . . Utility . | . . . Weapon 1 | . . 1 Tool/Special . | . . . Average Slot Usage (%) 94 | . 98 90 Engine 12 | . 14 10 Wheel 28 | . 28 29 Device 11 | . 10 12 Storage 12 | . 14 11 Processor 3 | . . 6 Protection 1 | . 2 . Energy Gun 6 | . 11 . Ballistic Gun 16 | . 14 18 Launcher 1 | . 1 1 Peak Build Rating 11 | 6 7 11 Average Rating 7 | 4 6 8 On Entrance 4 | . 6 7 Naked Turns . | . . . Heaviest Build 17 | 13 16 17 Greatest Support 42 | 26 26 42 Greatest Overweight (x) . | . . . Average Overweight (x) . | . . . Largest Inventory Capacity 8 | 8 8 8 Average Capacity 7 | 6 8 8 Most Carried 8 | 2 8 7 Average Carried 4 | 1 4 5 Final Capacity 8 | 8 8 8 Final Carried 8 | 2 8 3 Class Distribution -------------------- 100% | Mutant Dominant Class ---------------- Mutant | -10/Materials Mutant | -9/Materials Resources | -11 -10 -9 ----------- Run | Yrd Mat Mat Matter Collected 557 | 144 278 135 Remotely . | . . . Salvage Created 587 | . 373 214 Parts 34 | . 23 11 Haulers Intercepted . | . . . Recyclers Shooed . | . . . Parts Field Recycled . | . . . Retrieved Matter . | . . . Parts Self-Destructed . | . . . Prevented . | . . . Kills | -11 -10 -9 ------- Run | Yrd Mat Mat Combat Hostiles Destroyed 15 | . 10 5 Guns 11 | . 8 3 AOE 4 | . 2 2 Classes Destroyed 8 | . 4 4 Worker 1 | . 1 . Builder 1 | . 1 . Operator 1 | . . 1 Watcher 2 | . . 2 Swarmer 3 | . 3 . Grunt 10 | . 7 3 Brawler 1 | . . 1 Sentry 1 | . . 1 Best Kill Streak 4 | . 4 3 Combat Bots Only 3 | . 3 2 Max Kills in Single Turn 2 | . 1 2 Gunslinging . | . . . Exploded 2 | . 1 2 Melee . | . . . Uniques/NPCs Destroyed . | . . . Combat | -11 -10 -9 -------- Run | Yrd Mat Mat Hostile Shots Fired 102 | . 51 51 Missed 30 | . 14 16 Hits 72 | . 37 35 Melee 4 | . . 4 Projectile 68 | . 37 31 Critical Strikes 1 | . . 1 Damage Taken 992 | . 399 593 Core 265 | . 87 178 Absorbed by Shields . | . . . Core Remaining (%) 82 | 100 65 . Volleys Fired 72 | 5 34 33 Largest 2 | 2 2 2 Hottest 80 | 80 70 53 Shots Fired 128 | 10 67 51 Gun 118 | 10 62 46 Cannon . | . . . Launcher 10 | . 5 5 Special . | . . . Kinetic 78 | . 32 46 Thermal 20 | 5 15 . Explosive 10 | . 5 5 Electromagnetic 20 | 5 15 . Robot Hit Streak 21 | 7 21 8 Robot Miss Streak 4 | 3 4 4 Penetration Max . | . . . Secondary Targets 2 | . 2 . Max Gunslinging Chain 1 | . 1 . Shots Hit Robots 85 | 7 48 30 Core Hits 37 | 1 22 14 Critical Kills . | . . . Critical Parts Destroyed . | . . . Critical Strikes . | . . . Melee Attacks . | . . . Impact . | . . . Slashing . | . . . Piercing . | . . . Sneak Attacks . | . . . Combat Hostiles . | . . . Follow-up Attacks . | . . . Damage Inflicted 1245 | 86 626 533 Guns 936 | 86 497 353 Cannons . | . . . Explosions 300 | . 129 171 Melee . | . . . Ramming 9 | . . 9 Kinetic 575 | . 222 353 Thermal 140 | 31 109 . Explosive 300 | . 129 171 Electromagnetic 221 | 55 166 . Impact . | . . . Slashing . | . . . Piercing . | . . . Highest Corruption 2 | . . 2 Average Corruption 2 | . . 2 Corruption Purged . | . . . Corruption Blocked . | . . . Effects 2 | . . 2 Parts Rejected 1 | . . 1 Data Loss (minor) 1 | . . 1 Overload Shots . | . . . Overflow Damage 5 | . 5 . Projectiles . | . . . Explosions 5 | . 5 . Melee . | . . . Knockbacks . | . . . Impact . | . . . Kinetic . | . . . Secondary . | . . . Self-Inflicted Damage 74 | . . 74 Shots 2 | . . 2 Rammed 1 | . . 1 Targets Rammed 1 | . . 1 Kicked . | . . . Crushed . | . . . Highest Temperature 264 | 52 264 6 Average Temperature 70 | 25 79 6 Received Heat Transfer 360 | . 201 159 Effects 2 | . 2 . Interference 2 | . 2 . Siege Activations . | . . . Martial Activations . | . . . Shielding Activations . | . . . Robots Disrupted . | . . . Combat Hostiles . | . . . Robots Corrupted . | . . . Combat Hostiles . | . . . Parts Fried . | . . . Impact Corruptions . | . . . Robots Melted . | . . . Combat Hostiles . | . . . Parts Melted . | . . . Heat Transferred 325 | 75 250 . Parts Sabotaged . | . . . Parts Stolen . | . . . Parts Stripped . | . . . Power Chain Reactions . | . . . Alert | -11 -10 -9 ------- Run | Yrd Mat Mat Maximum Alert Level . | . . . Low Security (%) 100 | 100 100 100 Level 1 . | . . . Level 2 . | . . . Level 3 . | . . . Level 4 . | . . . Level 5 . | . . . High Security . | . . . Max Security . | . . . Peak Influence 149 | . 149 117 Initial 55 | . . 55 Average 64 | . 72 65 Influence Increases 541 | . 304 237 Destroy 0b10 Robot/C 300 | . 200 100 Destroy 0b10 Robot/NC 25 | . 10 15 Destroy Leader 84 | . 50 34 Successful Hack 12 | . 7 5 Disable Machine 15 | . . 15 Destroy Structure 60 | . 22 38 Partial Spotted 15 | . . 15 Lose Combat Pursuer 30 | . 15 15 Influence Decreases 489 | . 171 318 Entered New Map 78 | . . 78 Time Decay 321 | . 161 160 Lost Part 90 | . 10 80 Squads Dispatched 7 | . 4 3 Investigation 4 | . 3 1 Extermination . | . . . Reinforcement 3 | . 1 2 Assault . | . . . Garrison . | . . . Intercept . | . . . Searches Triggered . | . . . Construction Impeded 1 | . . 1 Haulers Reinforced . | . . . Active Scanning Responses . | . . . Cargo Convoy Interrupts . | . . . Stealth | -11 -10 -9 --------- Run | Yrd Mat Mat Distress Signals . | . . . Communications Jammed . | . . . Distress Signals . | . . . Times Spotted 24 | . 13 11 Peak Tracking Total 4 | . 4 3 Tactical Retreats 2 | . 1 1 Traps | -11 -10 -9 ------- Run | Yrd Mat Mat Traps Triggered 2 | . 1 1 Indirectly . | . . . Trap Hack Attempts . | . . . Triggered . | . . . Disarmed . | . . . Reprogrammed . | . . . Reused . | . . . Traps Extracted . | . . . Installed . | . . . Triggered . | . . . Machines | -11 -10 -9 ---------- Run | Yrd Mat Mat Machines Disabled 1 | . . 1 Max in Single Turn 1 | . . 1 Machines Repaired . | . . . Machines Dismantled . | . . . Machines Sabotaged . | . . . Overloaded Fab Kills . | . . . Hacking | -11 -10 -9 --------- Run | Yrd Mat Mat Machines Accessed 4 | . 2 2 Terminals 4 | . 2 2 Fabricators . | . . . Repair Stations . | . . . Recycling Units . | . . . Scanalyzers . | . . . Garrison Access . | . . . Total Hacks 9 | . 6 3 Successful 2 | . 1 1 Failed 7 | . 5 2 Catastrophic 2 | . 1 1 Database Lockouts . | . . . Manual 8 | . 6 2 Terminals 9 | . 6 3 Fabricators . | . . . Repair Stations . | . . . Recycling Units . | . . . Scanalyzers . | . . . Garrison Access . | . . . Terminal Hacks 2 | . 1 1 Branch Access Points 1 | . 1 . Zone Layout 1 | . . 1 Fabricator Hacks . | . . . Repair Station Hacks . | . . . Recycling Unit Hacks . | . . . Scanalyzer . | . . . Garrison Access Hacks . | . . . Unauthorized Hacks . | . . . Terminals . | . . . Fabricators . | . . . Repair Stations . | . . . Recycling Units . | . . . Scanalyzers . | . . . Garrison Access . | . . . Data Cores Recovered . | . . . Used . | . . . Hacking Detections 2 | . 1 1 Full Trace Events 2 | . 1 1 Feedback Events . | . . . Feedback Blocked . | . . . Robot Schematics Acquired . | . . . Robots Built . | . . . Authchips . | . . . Time . | . . . Total Robot Build Rating . | . . . Part Schematics Acquired . | . . . Parts Built . | . . . Authchips . | . . . Time . | . . . Total Part Build Rating . | . . . Parts Repaired . | . . . Time . | . . . Parts Recycled . | . . . Recycled Matter . | . . . Retrieved Matter . | . . . Retrieved Components . | . . . Parts Scanalyzed . | . . . Part Schematics Acquired . | . . . Parts Damaged . | . . . Bothacking | -11 -10 -9 ------------ Run | Yrd Mat Mat Used RIF Installer . | . . . Robots Hacked . | . . . Non-combat . | . . . Combat . | . . . Robot Hacks Applied . | . . . Relay Couplers Released . | . . . Fabnet Peak Effective % . | . . . Robots Rewired . | . . . Allies Hacked . | . . . Hacks Repelled . | . . . Allies | -11 -10 -9 -------- Run | Yrd Mat Mat Total Allies . | . . . Largest Group . | . . . Highest-Rated Group . | . . . Highest-Rated Ally . | . . . Total Orders . | . . . Ally Attacks . | . . . Total Damage . | . . . Kills . | . . . Allies Corrupted . | . . . Allies Melted . | . . . Intel | -11 -10 -9 ------- Run | Yrd Mat Mat Active Infowar (turns) 655 | . 321 334 Optics 215 | . . 215 Sensors 322 | . 203 119 Structural 361 | . 118 243 Robot Analysis Total . | . . . Derelict Logs Recovered . | . . . Drone Launches . | . . . Drone Recoveries . | . . . Exploration | -11 -10 -9 ------------- Run | Yrd Mat Mat Turns Passed 821 | 61 426 334 Spaces Moved 562 | 43 302 217 Core 8 | 8 . . Treads . | . . . Legs . | . . . Wheels 554 | 35 302 217 Hover . | . . . Flight . | . . . Fastest Speed 50 | 50 90 93 Average Speed 91 | 82 90 94 Slowest Speed 100 | 100 90 100 Overloaded Moves . | . . . Propulsion Burnouts . | . . . Robots Hopped . | . . . Potential Cave-ins . | . . . Cave-ins Triggered . | . . . Exploration Rate (%) 28 | 3 51 32 Regions Visited 2 Branch Regions . Pre-discovered Areas . | . . . Known Exits Taken . | . . . Unknown Exits Taken 2 | 1 1 . Scrap Searched . | . . . Spaces Dug . | . . . Terrain Destroyed 75 | . 36 39 Melee . | . . . Projectile . | . . . AOE 75 | . 36 39 Terrain Rammed . | . . . Walls Destroyed . | . . . Machines Disabled . | . . . Actions | -11 -10 -9 --------- Run | Yrd Mat Mat Total 739 | 55 389 295 Wait 63 | . 34 29 Move 560 | 42 301 217 Hop . | . . . Pick Up 11 | 2 6 3 Fast Attach 7 | 6 1 . Attach 5 | . 1 4 Detach . | . . . Swap 14 | . 10 4 Drop 6 | . 2 4 Fire 72 | 5 34 33 Melee . | . . . Ram 1 | . . 1 Kick . | . . . Crush . | . . . Escape Stasis . | . . . Rewire . | . . . Trap . | . . . Miscellaneous . | . . . Route ------- -11/Scrapyard -10/Materials (discovered 3 exits: *Mat / Min / [Sub]) -9/Materials (discovered 3 exits: [*Min] / [*Sto x2]) History --------- Turn | Location | Event 7 | -11/Scrapyard | Discovered new exit (range 16) 62 | -11/Scrapyard | Entered Materials 201 | -10/Materials | Discovered new exit (range 5) 240 | -10/Materials | Identified exit to Mines 306 | -10/Materials | Build established: Mutant 459 | -10/Materials | Discovered new exit (range 4) 488 | -10/Materials | Entered another Materials area 488 | -9/Materials | Evolved 2 slots: Propulsion x1, Utility x1 489 | -9/Materials | Discovered new exit (range 15) 657 | -9/Materials | Discovered new exit (range 17) 728 | -9/Materials | Discovered new exit (range 10) 775 | -9/Materials | Lost 3 parts (2n1u) 822 | -9/Materials | Self-destructed Last Messages --------------- 00784_ Y-45 Defender destroyed. 00786_ R-06 Scavenger collects Ion Engine. 00786_ K-01 Serf collects debris. 00789_ Acquired 28 matter. 00793_ U-05 Engineer builds a Wall. 00795_ U-05 Engineer builds a Door. 00796_ U-05 Engineer lays Concrete. 00799_ U-05 Engineer builds a Wall. 00800_ U-05 Engineer lays Concrete. 00801_ K-01 Serf collects debris. 00801_ U-05 Engineer builds a Wall. 00805_ U-05 Engineer lays Concrete. 00809_ K-01 Serf destroyed. 00811_ ALERT: Construction progress impeded, dispatching reinforcements to local area. 00813_ Assault Rifle destroyed. 00813_ Ion Engine destroyed. 00816_ Com. Wheel destroyed. 00821_ Assault Rifle destroyed. 00821_ Com. Wheel destroyed. Map ----- +----------------------------------------------------+ | #### ###???????????????????????????????????????? | | # ##????????????????????????????????????????? | | + ##????????????????????????????????????????? | | # ##????????????????????????????????????????? | | # ##????????????????????????????????????????? | | #### ##????????????????????????????????????????? | | # ##????????????????????????????????????????? | | # ##??????????? # ??????????????????????????? | | # ## ### ? # ??????????????????????????? | | + ###+####### # ??????????????????????????? | | # # "????????????????????????? | | # + ???????????????????????? | | #+## %= # ??????????????????????????? | | # ########+######+#### ??????????????????????????? | | # ##### # # ??????????????????????????? | | # ???## "T" # ?????????????????????????????????? | | # ???## # ?????????????????????????????????? | | # ##?## # ?????????????????????????????????? | | # ##?## # ?????######## ???????????????????? | | # ##?######/### ######## ???????????????????? | | # ######## ########## # ???????????????????? | | # ######## # ???????????????????? | | # + ???????????????????? | | # # ???????????????????? | | !g # ???????????????????? | | @ # ???????????????????? | | ######### kl ##?#######???????????? | | """ """ #""!"|""# [###########??????????? | | """ """ # "!"|" # #### ####?????????? | | """ """ # # % #### ###?????????? | | """ """ ##?????????? | | < ###?????????? | | ^ g ###?????????? | | """ """ ## ##/####### ###?????????? | | """ """ ########## ## ####?????????? | | """ """ ########## # ####?????????? | | """ """ ########## # ##???????????? | | ########## ]] # # ##???????????? | | #### + ### # ??????????? | | ###T###### #### ##### ] # *[ ?????????? | | ########## #### ##### # !# ????????? | | ###?### ####+############## < %/ ???????? | | ####### ## ! # # # ??????? | | ###### # # ??????# ?????? | | # T" # """ # ??????## # ?????? | | # " + R" # ???????# ## ????? | | + # """ # ???????# #?#####??????? | | ######### # # ???????# #??###???????? | | ########### ############ ???????# #????????????? | | ####### ############ ???????? ????????????? | +----------------------------------------------------+ Best States ------------- Heat Dissipation 28 Energy Generation 10 Energy Capacity 250 Matter Stores 300 Matter Capacity 300 Sight Range 18 Robot Scan Range 14 Terrain Scan Density 10 Armor Coverage 150 Evasion (%) 50 Item Schematics ----------------- None Robot Schematics ------------------ None Fabricated ------------ Nothing Repaired ---------- Nothing Alien Tech Used ----------------- None Achievements -------------- None Challenges ------------ None Game ------ Seed AssaultBiometalCore Manual? 0 Play Time 00:07:50 Cumulative 8.8 hours Start 2025.05.05 @ 23:22:21 End 2025.05.06 @ 01:10:17 Sessions 3 Manual Loads 0 Difficulty Rogue Special Mode None Game No. 36 Rogue 36 Adventurer 0 Explorer 0 Win Type - Total 0 Types 0/0/0/0/0/0/0/0/0/0 Lore% 4 Gallery% 13 Achievement% 11 Wizard Run 0 Options --------- Layout 1 ASCII 0 Keyboard 1 Movement Numpad Keybinds 0 Fullscreen 1 Font 24/Smallcaps Map View 50x35 Zoom Use 0% Tactical HUD 1 Map Filters NONE Filters NONE Steam 1 RUN: 1b5b1364-632e-4380-8765-8025a5ffc5cf